{"text_format":"1","workbook":"xlsx","n_sheets":7,"sheets":["利用手順","基本情報","詳細情報","調査票","出力CSVデータレイアウト定義","リスト_基本情報","リスト_詳細情報"],"not_rendered":{"charts":0,"images":15,"macros":1,"external_links":0,"defined_names":66,"comments":1,"pivot_tables":0},"unopened":[],"bounds":{"document_bytes":16777216,"sheet_cells":100000,"rows_first":2000,"rows_last":500,"rows_between":2000,"halvings":0,"cell_chars":16384,"cell_head_chars":4096},"cells_cut":0,"cells_raw":0,"read":"whole","date_system":"1900"}

{"sheet":"利用手順","index":0,"n_rows":126,"n_cols":9,"rows_kept":126,"cut":false,"hidden":false,"merged":[[35,1,36,3],[35,4,36,4],[35,5,36,12],[37,1,37,3],[37,5,37,12],[54,1,54,12],[55,1,56,12],[60,1,61,12],[39,1,39,12],[51,1,52,3],[51,4,52,4],[51,5,52,12],[40,1,40,3],[40,5,40,12],[41,1,43,3],[41,4,43,4],[41,5,43,12]]}
[]
[]
[]
[]
[]
[]
[]
[]
[null,"１．「基本情報」シートの白いセルの調査項目に入力してください。"]
[]
[]
[]
[]
[]
[]
[]
[]
[]
[]
[]
[]
[]
[]
[]
[]
[null,"２．「詳細情報」シートの白いセルの調査項目に入力してください。"]
[]
[]
[]
[]
[]
[]
[]
[]
[]
[null,"　調査年月\n　（【詳細情報】右）",null,null,"：","作成する月分を入力してください。※毎月更新してください。"]
[]
[null,"　５～11行目",null,null,"：","自動計算項目です。入力は不要です。"]
[]
[null,"　○13行目以降に各人の情報を入力します。入力の際は以下の点にご留意ください。"]
[null,"　性別",null,null,"：","入力必須です。入力がないと集計に反映されません。"]
[null,"　解雇、退職、転勤等に\n　よる減少",null,null,"：","本調査期間内で減少した人について「有」としてください。減少とした月の翌月の調査票では該当者の行をクリアしてください。（行を削除できないよう制御しているため、お手数ですが、該当者のセルを選択のうえ右クリックし、「数式と値のクリア」で値をクリアしてください）"]
[]
[]
[]
[]
[]
[]
[]
[]
[]
[null,"　実労働時間数",null,null,"：","小数点以下（小数点以下第二位まで）で入力すると自動で分単位に変換されます。\n（例：1.5時間 → 1：30）"]
[]
[null,null,null,null,null,"「時間：分」（例　7時間30分→7:30）で入力する際は、「分」は00～59で入力してください。"]
[null,"　○その他、以下の点にご留意ください。"]
[null,"　・行が足りなくなった場合（51人以上入力する場合）は、通常の操作では行追加できないよう制御しているため、\n　　お手数ですが、表の右上にある「行追加」の入力欄に行数を入力し、左のボタンを押してください。"]
[]
[]
[]
[]
[null,"　・数値の貼り付けを行った場合、以下のようにメッセージが表示されます。その場合、表の上部にある\n　　「表示更新」ボタンを押してください。"]
[]
[]
[]
[]
[]
[]
[]
[]
[]
[]
[]
[null,"３．「XMLファイル出力」をし、オンライン調査システムにて"]
[null,"　　回答を送信してください。"]
[]
[null,"　　＜XMLファイル出力方法＞"]
[]
[]
[]
[]
[]
[]
[]
[]
[]
[]
[]
[]
[]
[]
[]
[]
[]
[]
[]
[]
[]
[]
[]
[null,"　　「オンライン登録の確認」のメッセージが表示されますので、「はい」を押してください。"]
[]
[]
[]
[]
[]
[]
[]
[]
[]
[]
[]
[null,"　　事業所名を入力して、ファイルを保存してください。"]
[]
[null,null,null,null,null,null,null,null,"※調査票画面表示のみに使います。"]
[null,null,null,null,null,null,null,null,"　 名称変更がある場合は、"]
[null,null,null,null,null,null,null,null," 　別途ご連絡ください。"]
[]
[]
[]
[]
[]
[]
[null,"　　＜オンライン調査システムのXMLファイル回答送信方法＞"]
[]
[null,"　　オンライン調査システム（https://www.e-survey.go.jp/）にログインし、回答する月の調査票を開き、"]
[null,"　　調査票の画面左上「読み込み」ボタンより、先ほど保存したXMLファイルを読み込みます。"]

{"sheet":"基本情報","index":1,"n_rows":48,"n_cols":27,"rows_kept":48,"cut":false,"hidden":false,"merged":[[1,11,1,12],[1,20,1,23],[1,24,1,26],[1,13,1,19],[4,3,4,4],[4,16,4,19],[6,0,47,0],[36,13,37,20],[38,13,39,20],[41,13,41,20],[11,22,11,26],[9,22,9,26],[7,3,7,9],[12,12,12,14],[16,9,16,10],[15,1,16,4],[36,23,36,25],[47,23,47,25],[45,23,45,25],[43,23,43,25],[41,23,41,25],[39,23,39,25],[15,5,15,14],[15,15,15,16],[15,17,15,20],[15,21,15,26],[16,23,16,24],[16,21,16,22],[16,5,16,6],[16,7,16,8],[16,17,16,18],[16,25,16,26],[16,19,16,20],[16,11,16,12],[16,13,16,14],[16,15,16,16],[18,17,18,18],[18,19,18,20],[18,21,18,22],[18,13,18,14],[18,15,18,16],[20,13,20,14],[18,23,18,24],[18,25,18,26],[19,1,19,4],[19,5,19,6],[19,7,19,8],[19,9,19,10],[19,11,19,12],[19,13,19,14],[19,15,19,16],[19,17,19,18],[18,1,18,4],[18,5,18,6],[18,7,18,8],[18,9,18,10],[18,11,18,12],[20,1,20,4],[20,5,20,6],[20,7,20,8],[20,9,20,10],[20,11,20,12],[20,25,20,26],[19,19,19,20],[19,21,19,22],[19,23,19,24],[19,25,19,26],[20,15,20,16],[20,17,20,18],[20,19,20,20],[20,21,20,22],[20,23,20,24],[32,11,33,12],[32,13,33,20],[27,22,27,26],[26,22,26,26],[21,17,21,18],[21,19,21,20],[21,21,21,22],[21,23,21,24],[21,25,21,26],[21,1,21,4],[21,5,21,6],[21,7,21,8],[21,9,21,10],[21,13,21,14],[34,13,35,20],[25,23,25,25],[28,13,31,20],[30,23,30,25],[21,15,21,16]]}
[]
[null,"【基本情報】",null,null,null,null,null,null,null,null,null,"都道府県番号",null,"事業所一連番号",null,null,null,null,null,null,"産業分類番号",null,null,null,"抽出率番号"]
[]
[]
[null,null,"※","白い枠内",null,"の入力をお願いします。",null,null,null,null,{"$f":"IF(詳細情報!D2=\"\",\"\",詳細情報!D2)","v":"令和"},{"$f":"詳細情報!E2","v":0},{"$f":"詳細情報!G2","v":0},null,"記入者氏名",null,null,null,null,null,null,"作成年月日",null,"令和"]
[]
[null,null,"１　主要な生産品又は事業の内容は何ですか。",null,null,null,null,null,null,null,null,"３　調査期間中に事業活動を行った日数は何日でしたか。"]
[null,null,null,null,null,null,null,null,null,null,null,null,null,"日"]
[]
[null,null,"２　調査期間はいつからいつまででしたか。（前月の",null,null,null,null,null,null,null,null,"４　企業の全常用労働者数は何人ですか。該当の番号を"]
[null,null,"　最終給与締切日の翌日から、本月の最終給与締切日",null,null,null,null,null,null,null,null,"　選択してください。（貴企業（同一会社）に属する事業"]
[null,null,"　までの1ヵ月間です。）",null,null,null,null,null,null,null,null,"　所のすべてに雇用される常用労働者数です。）"]
[null,null,null,null,"月",null,"日から",null,"月",null,"日まで"]
[]
[]
[null,null,null,null,null,"5　常用労働者数",null,null,null,null,null,null,null,null,null,"6　出勤日数",null,"7　実労働時間数",null,null,null,"8　現金給与額"]
[null,null,null,null,null,"(1)前調査期間の末日は何人でしたか。",null,"(2)　採用、\n転勤等によ\nる増加は何\n人でしたか。",null,"(3)　解雇、退職、転勤等による減少は何人でしたか。",null,"(4)本調査期間の末日は何人でしたか。",null,"(5)うち、パートタイム労働者は何人でしたか。",null,"実際に出勤した日の合計は延べ何日でしたか。",null,"(1)所定内労働時間の合計は延べ何時間でしたか。",null,"(2)所定外労働時間の合計は延べ何時間でしたか。",null,"(1)きまって支給する給与の総額はいくらでしたか。",null,"(2)うち、超過労働の給与の総額はいくらでしたか。",null,"(3)特別に支払われた給与の総額はいくらでしたか。"]
[null,null,null,null,null,null,null,null,null,null,null,null,"人",null,"人",null,"日",null,"時間",null,"時間",null,"千円",null,"千円",null,"千円"]
[null,"男",null,null,null,null,null,{"$f":"詳細情報!E5","v":0},null,{"$f":"詳細情報!F5","v":0},null,{"$f":"詳細情報!C5-詳細情報!F5","v":0},null,{"$f":"詳細情報!F9","v":0},null,{"$f":"詳細情報!G5","v":0},null,{"$f":"詳細情報!H5","v":0},null,{"$f":"詳細情報!I5","v":0},null,{"$f":"ROUND(詳細情報!Q5/1000,0)","v":0},null,{"$f":"ROUND(詳細情報!K5/1000,0)","v":0},null,{"$f":"ROUND(詳細情報!W5/1000,0)","v":0}]
[null,"女",null,null,null,null,null,{"$f":"詳細情報!E6","v":0},null,{"$f":"詳細情報!F6","v":0},null,{"$f":"詳細情報!C6-詳細情報!F6","v":0},null,{"$f":"詳細情報!F10","v":0},null,{"$f":"詳細情報!G6","v":0},null,{"$f":"詳細情報!H6","v":0},null,{"$f":"詳細情報!I6","v":0},null,{"$f":"ROUND(詳細情報!Q6/1000,0)","v":0},null,{"$f":"ROUND(詳細情報!K6/1000,0)","v":0},null,{"$f":"ROUND(詳細情報!W6/1000,0)","v":0}]
[null,"計",null,null,null,{"$f":"SUM(F19:G20)","v":0},null,{"$f":"詳細情報!E7","v":0},null,{"$f":"詳細情報!F7","v":0},null,{"$f":"SUM(L19:L20)","v":0},null,null,null,{"$f":"詳細情報!G7","v":0},null,{"$f":"詳細情報!H7","v":0},null,{"$f":"詳細情報!I7","v":0},null,{"$f":"SUM(V19:W20)","v":0},null,{"$f":"SUM(X19:Y20)","v":0},null,{"$f":"SUM(Z19:AA20)","v":0}]
[null,"◎　↑計のうち、\nﾊﾟｰﾄﾀｲﾑ労働者",null,null,null,null,null,{"$f":"詳細情報!E8","v":0},null,{"$f":"詳細情報!F8","v":0},null,null,null,{"$f":"SUM(詳細情報!F9:F10)","v":0},null,{"$f":"詳細情報!G8","v":0},null,{"$f":"詳細情報!H8","v":0},null,{"$f":"詳細情報!I8","v":0},null,{"$f":"ROUND(詳細情報!Q8/1000,0)","v":0},null,{"$f":"ROUND(詳細情報!K8/1000,0)","v":0},null,{"$f":"ROUND(詳細情報!W8/1000,0)","v":0}]
[]
[null,null,"9 変動状況",null,null,null,null,null,null,null,null,null,null,"  10 備　考"]
[null,null,null,"　　調査期間中に、次のことがあった場合は該当事項の空欄",null,null,null,null,null,null,null,null,null,null,"本月分の報告内容と前月分の間に著しい差",null,null,null,null,null,null,null,"※8(3)特別に支払われた給与"]
[null,null,"↓","　　に○を入れ、右の備考欄にその概略を記入してください。",null,null,null,null,null,null,null,null,null,"　↓","がある場合は、その理由を記入してください。",null,null,null,null,null,null,null,null,{"$f":"Z21","v":0}]
[null,null,null,null,null,null,null,null,null,null,null,null,null,null,null,null,null,null,null,null,null,null,"※８(3)の内訳を記入お願いします。"]
[]
[null,null,null," 1  定昇を実施した。",null,null,null,null,null,null,null,null,null,null,null,null,null,null,null,null,null,null,"①賞与"]
[]
[null,null,null," 2   ベースアップを実施した。",null,null,null,null,null,null,null,null,null,null,null,null,null,null,null,null,null,null,"金額",{"$f":"ROUND(詳細情報!R7/1000,0)","v":0}]
[]
[null,null,null," 3   操業短縮、一時休業を実施した。",null,null,null,null,null,null,null,"【チェック項目】",null,{"$f":"IF(F19+H19-J19=L19,\"\",\"5(4)≠5(1)～(3)　(過不足 男\"&(L19-F19-H19+J19)&\"人)→OK？\")","v":""},null,null,null,null,null,null,null,null,"②定昇・ﾍﾞｰｽｱｯﾌﾟ等追給額"]
[]
[null,null,null," 4   休日に操業、営業等の事業活動を行った。",null,null,null,null,null,null,null,null,null,{"$f":"IF(F20+H20-J20=L20,\"\",\"5(4)≠5(1)～(3)　(過不足 女\"&(L20-F20-H20+J20)&\"人)→OK？\")","v":""},null,null,null,null,null,null,null,null,null,null,"月分から",null,"月分"]
[]
[null,null,null," 5   制度上の週所定労働時間の短縮を実施した。",null,null,null,null,null,null,null,null,null,{"$f":"IF(F22+H22-J22=N22,\"\",\"5(5)ﾊﾟｰﾄ計≠5(1)～(3)ﾊﾟｰﾄ(過不足\"&(N22-F22-H22+J22)&\"人)→OK？\")","v":""},null,null,null,null,null,null,null,null,"金額",{"$f":"ROUND(詳細情報!S7/1000,0)","v":0}]
[]
[null,null,null," 6   夏休みなど、週休以外の休日を増やした。",null,null,null,null,null,null,null,null,null,null,null,null,null,null,null,null,null,null,"③通勤手当（３ヵ月を超えて算定）"]
[null,null,null,null,null,null,null,null,null,null,null,null,null,null,null,null,null,null,null,null,null,null,"金額",{"$f":"ROUND(詳細情報!T7/1000,0)","v":0}]
[]
[null,null,null,null,null,null,null,null,null,null,null,null,null,{"$f":"IF(OR(C29=\"○\",C31=\"○\",C33=\"○\",C35=\"○\",C37=\"○\",C39=\"○\"),\"９　変動状況に○印あり。→OK？\",\"\")","v":""},null,null,null,null,null,null,null,null,"④名称"]
[]
[null,null,null,null,null,null,null,null,null,null,null,null,null,null,null,null,null,null,null,null,null,null,"金額",{"$f":"ROUND(詳細情報!U7/1000,0)","v":0}]
[]
[null,null,null,null,null,null,null,null,null,null,null,null,null,null,null,null,null,null,null,null,null,null,"⑤名称"]
[]
[null,null,null,null,null,null,null,null,null,null,null,null,null,null,null,null,null,null,null,null,null,null,"金額",{"$f":"ROUND(詳細情報!V7/1000,0)","v":0}]

{"sheet":"詳細情報","index":2,"n_rows":410,"n_cols":24,"rows_kept":410,"cut":false,"hidden":false,"merged":[[12,7,12,8],[13,7,15,7],[13,8,15,8],[12,9,12,16],[13,9,15,9],[13,10,15,10],[14,12,15,12],[14,13,15,13],[14,14,15,14],[14,15,15,15],[13,16,15,16],[13,11,13,15],[14,11,15,11],[12,4,12,5],[12,6,15,6],[12,0,15,0],[12,1,15,1],[12,2,12,3],[13,2,15,2],[13,3,15,3],[13,4,15,4],[13,5,15,5],[12,23,15,23],[12,17,12,22],[13,22,15,22],[13,18,15,18],[13,19,15,19],[13,21,15,21],[13,17,15,17],[13,20,15,20]]}
[]
[null,"【詳細情報】",null,"令和",null,"年",null,"月分"]
[]
[]
[null,"男",{"$f":"COUNTIF(sex,\"男\")","v":0},{"$f":"SUM(IF(part=\"パート\",IF(sex=\"男\",1,0),0))","v":0},{"$f":"SUM(IF(nyuusya=\"有\",IF(sex=\"男\",1,0),0))","v":0},{"$f":"SUM(IF(taisya=\"有\",IF(sex=\"男\",1,0),0))","v":0},{"$f":"SUMIF(sex,\"男\",nissu)","v":0},0,0,{"$f":"SUMIF(sex,\"男\",tingin)","v":0},{"$f":"SUMIF(sex,\"男\",jikangaiteate)","v":0},{"$f":"SUMIF(sex,\"男\",teate1)","v":0},{"$f":"SUMIF(sex,\"男\",teate2)","v":0},{"$f":"SUMIF(sex,\"男\",teate3)","v":0},{"$f":"SUMIF(sex,\"男\",teate4)","v":0},{"$f":"SUMIF(sex,\"男\",teate5)","v":0},{"$f":"SUMIF(sex,\"男\",kyuyo)","v":0},{"$f":"SUMIF(sex,\"男\",shoyo)","v":0},{"$f":"SUMIF(sex,\"男\",teisho)","v":0},{"$f":"SUMIF(sex,\"男\",tsukinteate)","v":0},{"$f":"SUMIF(sex,\"男\",rinkyu1)","v":0},{"$f":"SUMIF(sex,\"男\",rinkyu2)","v":0},{"$f":"SUMIF(sex,\"男\",tokubetsukyu)","v":0},{"$f":"SUM(Q5,W5)","v":0}]
[null,"女",{"$f":"COUNTIF(sex,\"女\")","v":0},{"$f":"SUM(IF(part=\"パート\",IF(sex=\"女\",1,0),0))","v":0},{"$f":"SUM(IF(nyuusya=\"有\",IF(sex=\"女\",1,0),0))","v":0},{"$f":"SUM(IF(taisya=\"有\",IF(sex=\"女\",1,0),0))","v":0},{"$f":"SUMIF(sex,\"女\",nissu)","v":0},0,0,{"$f":"SUMIF(sex,\"女\",tingin)","v":0},{"$f":"SUMIF(sex,\"女\",jikangaiteate)","v":0},{"$f":"SUMIF(sex,\"女\",teate1)","v":0},{"$f":"SUMIF(sex,\"女\",teate2)","v":0},{"$f":"SUMIF(sex,\"女\",teate3)","v":0},{"$f":"SUMIF(sex,\"女\",teate4)","v":0},{"$f":"SUMIF(sex,\"女\",teate5)","v":0},{"$f":"SUMIF(sex,\"女\",kyuyo)","v":0},{"$f":"SUMIF(sex,\"女\",shoyo)","v":0},{"$f":"SUMIF(sex,\"女\",teisho)","v":0},{"$f":"SUMIF(sex,\"女\",tsukinteate)","v":0},{"$f":"SUMIF(sex,\"女\",rinkyu1)","v":0},{"$f":"SUMIF(sex,\"女\",rinkyu2)","v":0},{"$f":"SUMIF(sex,\"女\",tokubetsukyu)","v":0},{"$f":"SUM(Q6,W6)","v":0}]
[null,"計",{"$f":"SUM(C5:C6)","v":0},0,0,0,0,0,{"$f":"SUM(I5:I6)","v":0},0,0,0,0,0,0,{"$f":"SUM(P5:P6)","v":0},0,0,{"$f":"SUM(S5:S6)","v":0},{"$f":"SUM(T5:T6)","v":0},{"$f":"SUM(U5:U6)","v":0},0,0,{"$f":"SUM(Q7,W7)","v":0}]
[null,"パートタイム(内数）",null,{"$f":"SUM(IF(part=\"パート\",1,0))","v":0},{"$f":"SUM(IF(nyuusya=\"有\",IF(part=\"パート\",1,0),0))","v":0},{"$f":"SUM(IF(taisya=\"有\",IF(part=\"パート\",1,0),0))","v":0},{"$f":"SUM(IF(part=\"パート\",nissu,0))","v":0},0,0,{"$f":"SUM(IF(part=\"パート\",tingin,0))","v":0},{"$f":"SUM(IF(part=\"パート\",jikangaiteate,0))","v":0},{"$f":"SUM(IF(part=\"パート\",teate1,0))","v":0},{"$f":"SUM(IF(part=\"パート\",teate2,0))","v":0},{"$f":"SUM(IF(part=\"パート\",teate3,0))","v":0},{"$f":"SUM(IF(part=\"パート\",teate4,0))","v":0},{"$f":"SUM(IF(part=\"パート\",teate5,0))","v":0},{"$f":"SUM(IF(part=\"パート\",kyuyo,0))","v":0},{"$f":"SUM(IF(part=\"パート\",shoyo,0))","v":0},{"$f":"SUM(IF(part=\"パート\",teisho,0))","v":0},{"$f":"SUM(IF(part=\"パート\",tsukinteate,0))","v":0},{"$f":"SUM(IF(part=\"パート\",rinkyu1,0))","v":0},{"$f":"SUM(IF(part=\"パート\",rinkyu2,0))","v":0},{"$f":"SUM(IF(part=\"パート\",tokubetsukyu,0))","v":0},{"$f":"SUM(Q8,W8)","v":0}]
[null,"パート男　計",null,null,null,{"$f":"D5-(SUM(IF(part=\"パート\",IF(taisya=\"有\",IF(sex=\"男\",1,0)))))","v":0}]
[null,"パート女　計",null,null,null,{"$f":"D6-(SUM(IF(part=\"パート\",IF(taisya=\"有\",IF(sex=\"女\",1,0)))))","v":0},null,null,null,null,null,null,null,null,null,null,null,null,null,null,null,null,null,"行追加"]
[]
[]
["Ｎｏ","氏　　名","常用労働者",null,"本調査期間内の",null,"出勤日数（１時間でも出勤した日は１日に数えてください）\n\n（単位：日）","実労働時間数\n（単位：時間）",null,"きまって支給する給与\n（単位:円）",null,null,null,null,null,null,null,"特別に支払われた給与\n　　　　　　「記入要領」17頁参照　（単位:円）",null,null,null,null,null,"総支給額合計\n（自動計算されます）"]
[null,null,"性別","パート\n（短時間労働者）\n定義は「記入要領」４頁参照","採用転勤等による増加","解雇、退職、転勤等による減少",null,"所定内労働時間","所定外労働時間\n（早出、残業、休日出勤等）","基本給","超過労働手当\n（残業手当、深夜手当等）","３ヵ月以内の期間で算定されるもの",null,null,null,null,"小計\n（自動計算されます）","①賞与","②定昇・ベースアップ等の追給","③通勤手当\n（３カ月を超える期間で算定されるもの）","④臨時に支払われた現金給与－１","⑤臨時に支払われた現金給与－２","小計\n（自動計算されます）"]
[null,null,null,null,null,null,null,null,null,null,null,"手当-1","手当-2","手当-3","手当-4","手当-5"]
[]
[{"$f":"ROW()-17","v":0},null,null,null,null,null,null,null,null,null,null,null,null,null,null,null,{"$f":"SUM(J17:P17)","v":0},null,null,null,null,null,{"$f":"SUM(R17:V17)","v":0},{"$f":"SUM(Q17,W17)","v":0}]
[{"$f":"ROW()-17","v":1},null,null,null,null,null,null,null,null,null,null,null,null,null,null,null,{"$f":"SUM(J18:P18)","v":0},null,null,null,null,null,{"$f":"SUM(R18:V18)","v":0},{"$f":"SUM(Q18,W18)","v":0}]
[2,null,null,null,null,null,null,null,null,null,null,null,null,null,null,null,0,null,null,null,null,null,0,0]
[3,null,null,null,null,null,null,null,null,null,null,null,null,null,null,null,0,null,null,null,null,null,0,0]
[4,null,null,null,null,null,null,null,null,null,null,null,null,null,null,null,0,null,null,null,null,null,0,0]
[5,null,null,null,null,null,null,null,null,null,null,null,null,null,null,null,0,null,null,null,null,null,0,0]
[6,null,null,null,null,null,null,null,null,null,null,null,null,null,null,null,0,null,null,null,null,null,0,0]
[7,null,null,null,null,null,null,null,null,null,null,null,null,null,null,null,0,null,null,null,null,null,0,0]
[8,null,null,null,null,null,null,null,null,null,null,null,null,null,null,null,0,null,null,null,null,null,0,0]
[9,null,null,null,null,null,null,null,null,null,null,null,null,null,null,null,0,null,null,null,null,null,0,0]
[10,null,null,null,null,null,null,null,null,null,null,null,null,null,null,null,0,null,null,null,null,null,0,0]
[11,null,null,null,null,null,null,null,null,null,null,null,null,null,null,null,0,null,null,null,null,null,0,0]
[12,null,null,null,null,null,null,null,null,null,null,null,null,null,null,null,0,null,null,null,null,null,0,0]
[13,null,null,null,null,null,null,null,null,null,null,null,null,null,null,null,0,null,null,null,null,null,0,0]
[14,null,null,null,null,null,null,null,null,null,null,null,null,null,null,null,0,null,null,null,null,null,0,0]
[15,null,null,null,null,null,null,null,null,null,null,null,null,null,null,null,0,null,null,null,null,null,0,0]
[16,null,null,null,null,null,null,null,null,null,null,null,null,null,null,null,0,null,null,null,null,null,0,0]
[17,null,null,null,null,null,null,null,null,null,null,null,null,null,null,null,0,null,null,null,null,null,0,0]
[18,null,null,null,null,null,null,"","",null,null,null,null,null,null,null,0,null,null,null,null,null,0,0]
[19,null,null,null,null,null,null,"","",null,null,null,null,null,null,null,0,null,null,null,null,null,0,0]
[20,null,null,null,null,null,null,"","",null,null,null,null,null,null,null,0,null,null,null,null,null,0,0]
[21,null,null,null,null,null,null,"","",null,null,null,null,null,null,null,0,null,null,null,null,null,0,0]
[22,null,null,null,null,null,null,"","",null,null,null,null,null,null,null,0,null,null,null,null,null,0,0]
[23,null,null,null,null,null,null,"","",null,null,null,null,null,null,null,0,null,null,null,null,null,0,0]
[24,null,null,null,null,null,null,"","",null,null,null,null,null,null,null,0,null,null,null,null,null,0,0]
[25,null,null,null,null,null,null,"","",null,null,null,null,null,null,null,0,null,null,null,null,null,0,0]
[26,null,null,null,null,null,null,"","",null,null,null,null,null,null,null,0,null,null,null,null,null,0,0]
[27,null,null,null,null,null,null,"","",null,null,null,null,null,null,null,0,null,null,null,null,null,0,0]
[28,null,null,null,null,null,null,"","",null,null,null,null,null,null,null,0,null,null,null,null,null,0,0]
[29,null,null,null,null,null,null,"","",null,null,null,null,null,null,null,0,null,null,null,null,null,0,0]
[30,null,null,null,null,null,null,"","",null,null,null,null,null,null,null,0,null,null,null,null,null,0,0]
[31,null,null,null,null,null,null,"","",null,null,null,null,null,null,null,0,null,null,null,null,null,0,0]
[32,null,null,null,null,null,null,"","",null,null,null,null,null,null,null,0,null,null,null,null,null,0,0]
[33,null,null,null,null,null,null,"","",null,null,null,null,null,null,null,0,null,null,null,null,null,0,0]
[34,null,null,null,null,null,null,"","",null,null,null,null,null,null,null,0,null,null,null,null,null,0,0]
[35,null,null,null,null,null,null,"","",null,null,null,null,null,null,null,0,null,null,null,null,null,0,0]
[36,null,null,null,null,null,null,"","",null,null,null,null,null,null,null,0,null,null,null,null,null,0,0]
[37,null,null,null,null,null,null,"","",null,null,null,null,null,null,null,0,null,null,null,null,null,0,0]
[38,null,null,null,null,null,null,"","",null,null,null,null,null,null,null,0,null,null,null,null,null,0,0]
[39,null,null,null,null,null,null,"","",null,null,null,null,null,null,null,0,null,null,null,null,null,0,0]
[40,null,null,null,null,null,null,"","",null,null,null,null,null,null,null,0,null,null,null,null,null,0,0]
[41,null,null,null,null,null,null,"","",null,null,null,null,null,null,null,0,null,null,null,null,null,0,0]
[42,null,null,null,null,null,null,"","",null,null,null,null,null,null,null,0,null,null,null,null,null,0,0]
[43,null,null,null,null,null,null,"","",null,null,null,null,null,null,null,0,null,null,null,null,null,0,0]
[44,null,null,null,null,null,null,"","",null,null,null,null,null,null,null,0,null,null,null,null,null,0,0]
[45,null,null,null,null,null,null,"","",null,null,null,null,null,null,null,0,null,null,null,null,null,0,0]
[46,null,null,null,null,null,null,"","",null,null,null,null,null,null,null,0,null,null,null,null,null,0,0]
[47,null,null,null,null,null,null,"","",null,null,null,null,null,null,null,0,null,null,null,null,null,0,0]
[48,null,null,null,null,null,null,"","",null,null,null,null,null,null,null,0,null,null,null,null,null,0,0]
[49,null,null,null,null,null,null,"","",null,null,null,null,null,null,null,0,null,null,null,null,null,0,0]
[{"$f":"ROW()-17","v":50},null,null,null,null,null,null,"","",null,null,null,null,null,null,null,{"$f":"SUM(J67:P67)","v":0},null,null,null,null,null,{"$f":"SUM(R67:V67)","v":0},{"$f":"SUM(Q67,W67)","v":0}]
[{"$f":"ROW()-16","v":52},null,null,null,null,null,null,"","",null,null,null,null,null,null,null,{"$f":"SUM(J68:P68)","v":0},null,null,null,null,null,{"$f":"SUM(R68:V68)","v":0},{"$f":"SUM(Q68,W68)","v":0}]
[null,null,null,null,null,null,null,"",""]
[null,null,null,null,null,null,null,"",""]
[null,null,null,null,null,null,null,"",""]
[null,null,null,null,null,null,null,"",""]
[null,null,null,null,null,null,null,"",""]
[null,null,null,null,null,null,null,"",""]
[null,null,null,null,null,null,null,"",""]
[null,null,null,null,null,null,null,"",""]
[null,null,null,null,null,null,null,"",""]
[null,null,null,null,null,null,null,"",""]
[null,null,null,null,null,null,null,"",""]
[null,null,null,null,null,null,null,"",""]
[null,null,null,null,null,null,null,"",""]
[null,null,null,null,null,null,null,"",""]
[null,null,null,null,null,null,null,"",""]
[null,null,null,null,null,null,null,"",""]
[null,null,null,null,null,null,null,"",""]
[null,null,null,null,null,null,null,"",""]
[null,null,null,null,null,null,null,"",""]
[null,null,null,null,null,null,null,"",""]
[null,null,null,null,null,null,null,"",""]
[null,null,null,null,null,null,null,"",""]
[null,null,null,null,null,null,null,"",""]
[null,null,null,null,null,null,null,"",""]
[null,null,null,null,null,null,null,"",""]
[null,null,null,null,null,null,null,"",""]
[null,null,null,null,null,null,null,"",""]
[null,null,null,null,null,null,null,"",""]
[null,null,null,null,null,null,null,"",""]
[null,null,null,null,null,null,null,"",""]
[null,null,null,null,null,null,null,"",""]
[null,null,null,null,null,null,null,"",""]
[null,null,null,null,null,null,null,"",""]
[null,null,null,null,null,null,null,"",""]
[null,null,null,null,null,null,null,"",""]
[null,null,null,null,null,null,null,"",""]
[null,null,null,null,null,null,null,"",""]
[null,null,null,null,null,null,null,"",""]
[null,null,null,null,null,null,null,"",""]
[null,null,null,null,null,null,null,"",""]
[null,null,null,null,null,null,null,"",""]
[null,null,null,null,null,null,null,"",""]
[null,null,null,null,null,null,null,"",""]
[null,null,null,null,null,null,null,"",""]
[null,null,null,null,null,null,null,"",""]
[null,null,null,null,null,null,null,"",""]
[null,null,null,null,null,null,null,"",""]
[null,null,null,null,null,null,null,"",""]
[null,null,null,null,null,null,null,"",""]
[null,null,null,null,null,null,null,"",""]
[null,null,null,null,null,null,null,"",""]
[null,null,null,null,null,null,null,"",""]
[null,null,null,null,null,null,null,"",""]
[null,null,null,null,null,null,null,"",""]
[null,null,null,null,null,null,null,"",""]
[null,null,null,null,null,null,null,"",""]
[null,null,null,null,null,null,null,"",""]
[null,null,null,null,null,null,null,"",""]
[null,null,null,null,null,null,null,"",""]
[null,null,null,null,null,null,null,"",""]
[null,null,null,null,null,null,null,"",""]
[null,null,null,null,null,null,null,"",""]
[null,null,null,null,null,null,null,"",""]
[null,null,null,null,null,null,null,"",""]
[null,null,null,null,null,null,null,"",""]
[null,null,null,null,null,null,null,"",""]
[null,null,null,null,null,null,null,"",""]
[null,null,null,null,null,null,null,"",""]
[null,null,null,null,null,null,null,"",""]
[null,null,null,null,null,null,null,"",""]
[null,null,null,null,null,null,null,"",""]
[null,null,null,null,null,null,null,"",""]
[null,null,null,null,null,null,null,"",""]
[null,null,null,null,null,null,null,"",""]
[null,null,null,null,null,null,null,"",""]
[null,null,null,null,null,null,null,"",""]
[null,null,null,null,null,null,null,"",""]
[null,null,null,null,null,null,null,"",""]
[null,null,null,null,null,null,null,"",""]
[null,null,null,null,null,null,null,"",""]
[null,null,null,null,null,null,null,"",""]
[null,null,null,null,null,null,null,"",""]
[null,null,null,null,null,null,null,"",""]
[null,null,null,null,null,null,null,"",""]
[null,null,null,null,null,null,null,"",""]
[null,null,null,null,null,null,null,"",""]
[null,null,null,null,null,null,null,"",""]
[null,null,null,null,null,null,null,"",""]
[null,null,null,null,null,null,null,"",""]
[null,null,null,null,null,null,null,"",""]
[null,null,null,null,null,null,null,"",""]
[null,null,null,null,null,null,null,"",""]
[null,null,null,null,null,null,null,"",""]
[null,null,null,null,null,null,null,"",""]
[null,null,null,null,null,null,null,"",""]
[null,null,null,null,null,null,null,"",""]
[null,null,null,null,null,null,null,"",""]
[null,null,null,null,null,null,null,"",""]
[null,null,null,null,null,null,null,"",""]
[null,null,null,null,null,null,null,"",""]
[null,null,null,null,null,null,null,"",""]
[null,null,null,null,null,null,null,"",""]
[null,null,null,null,null,null,null,"",""]
[null,null,null,null,null,null,null,"",""]
[null,null,null,null,null,null,null,"",""]
[null,null,null,null,null,null,null,"",""]
[null,null,null,null,null,null,null,"",""]
[null,null,null,null,null,null,null,"",""]
[null,null,null,null,null,null,null,"",""]
[null,null,null,null,null,null,null,"",""]
[null,null,null,null,null,null,null,"",""]
[null,null,null,null,null,null,null,"",""]
[null,null,null,null,null,null,null,"",""]
[null,null,null,null,null,null,null,"",""]
[null,null,null,null,null,null,null,"",""]
[null,null,null,null,null,null,null,"",""]
[null,null,null,null,null,null,null,"",""]
[null,null,null,null,null,null,null,"",""]
[null,null,null,null,null,null,null,"",""]
[null,null,null,null,null,null,null,"",""]
[null,null,null,null,null,null,null,"",""]
[null,null,null,null,null,null,null,"",""]
[null,null,null,null,null,null,null,"",""]
[null,null,null,null,null,null,null,"",""]
[null,null,null,null,null,null,null,"",""]
[null,null,null,null,null,null,null,"",""]
[null,null,null,null,null,null,null,"",""]
[null,null,null,null,null,null,null,"",""]
[null,null,null,null,null,null,null,"",""]
[null,null,null,null,null,null,null,"",""]
[null,null,null,null,null,null,null,"",""]
[null,null,null,null,null,null,null,"",""]
[null,null,null,null,null,null,null,"",""]
[null,null,null,null,null,null,null,"",""]
[null,null,null,null,null,null,null,"",""]
[null,null,null,null,null,null,null,"",""]
[null,null,null,null,null,null,null,"",""]
[null,null,null,null,null,null,null,"",""]
[null,null,null,null,null,null,null,"",""]
[null,null,null,null,null,null,null,"",""]
[null,null,null,null,null,null,null,"",""]
[null,null,null,null,null,null,null,"",""]
[null,null,null,null,null,null,null,"",""]
[null,null,null,null,null,null,null,"",""]
[null,null,null,null,null,null,null,"",""]
[null,null,null,null,null,null,null,"",""]
[null,null,null,null,null,null,null,"",""]
[null,null,null,null,null,null,null,"",""]
[null,null,null,null,null,null,null,"",""]
[null,null,null,null,null,null,null,"",""]
[null,null,null,null,null,null,null,"",""]
[null,null,null,null,null,null,null,"",""]
[null,null,null,null,null,null,null,"",""]
[null,null,null,null,null,null,null,"",""]
[null,null,null,null,null,null,null,"",""]
[null,null,null,null,null,null,null,"",""]
[null,null,null,null,null,null,null,"",""]
[null,null,null,null,null,null,null,"",""]
[null,null,null,null,null,null,null,"",""]
[null,null,null,null,null,null,null,"",""]
[null,null,null,null,null,null,null,"",""]
[null,null,null,null,null,null,null,"",""]
[null,null,null,null,null,null,null,"",""]
[null,null,null,null,null,null,null,"",""]
[null,null,null,null,null,null,null,"",""]
[null,null,null,null,null,null,null,"",""]
[null,null,null,null,null,null,null,"",""]
[null,null,null,null,null,null,null,"",""]
[null,null,null,null,null,null,null,"",""]
[null,null,null,null,null,null,null,"",""]
[null,null,null,null,null,null,null,"",""]
[null,null,null,null,null,null,null,"",""]
[null,null,null,null,null,null,null,"",""]
[null,null,null,null,null,null,null,"",""]
[null,null,null,null,null,null,null,"",""]
[null,null,null,null,null,null,null,"",""]
[null,null,null,null,null,null,null,"",""]
[null,null,null,null,null,null,null,"",""]
[null,null,null,null,null,null,null,"",""]
[null,null,null,null,null,null,null,"",""]
[null,null,null,null,null,null,null,"",""]
[null,null,null,null,null,null,null,"",""]
[null,null,null,null,null,null,null,"",""]
[null,null,null,null,null,null,null,"",""]
[null,null,null,null,null,null,null,"",""]
[null,null,null,null,null,null,null,"",""]
[null,null,null,null,null,null,null,"",""]
[null,null,null,null,null,null,null,"",""]
[null,null,null,null,null,null,null,"",""]
[null,null,null,null,null,null,null,"",""]
[null,null,null,null,null,null,null,"",""]
[null,null,null,null,null,null,null,"",""]
[null,null,null,null,null,null,null,"",""]
[null,null,null,null,null,null,null,"",""]
[null,null,null,null,null,null,null,"",""]
[null,null,null,null,null,null,null,"",""]
[null,null,null,null,null,null,null,"",""]
[null,null,null,null,null,null,null,"",""]
[null,null,null,null,null,null,null,"",""]
[null,null,null,null,null,null,null,"",""]
[null,null,null,null,null,null,null,"",""]
[null,null,null,null,null,null,null,"",""]
[null,null,null,null,null,null,null,"",""]
[null,null,null,null,null,null,null,"",""]
[null,null,null,null,null,null,null,"",""]
[null,null,null,null,null,null,null,"",""]
[null,null,null,null,null,null,null,"",""]
[null,null,null,null,null,null,null,"",""]
[null,null,null,null,null,null,null,"",""]
[null,null,null,null,null,null,null,"",""]
[null,null,null,null,null,null,null,"",""]
[null,null,null,null,null,null,null,"",""]
[null,null,null,null,null,null,null,"",""]
[null,null,null,null,null,null,null,"",""]
[null,null,null,null,null,null,null,"",""]
[null,null,null,null,null,null,null,"",""]
[null,null,null,null,null,null,null,"",""]
[null,null,null,null,null,null,null,"",""]
[null,null,null,null,null,null,null,"",""]
[null,null,null,null,null,null,null,"",""]
[null,null,null,null,null,null,null,"",""]
[null,null,null,null,null,null,null,"",""]
[null,null,null,null,null,null,null,"",""]
[null,null,null,null,null,null,null,"",""]
[null,null,null,null,null,null,null,"",""]
[null,null,null,null,null,null,null,"",""]
[null,null,null,null,null,null,null,"",""]
[null,null,null,null,null,null,null,"",""]
[null,null,null,null,null,null,null,"",""]
[null,null,null,null,null,null,null,"",""]
[null,null,null,null,null,null,null,"",""]
[null,null,null,null,null,null,null,"",""]
[null,null,null,null,null,null,null,"",""]
[null,null,null,null,null,null,null,"",""]
[null,null,null,null,null,null,null,"",""]
[null,null,null,null,null,null,null,"",""]
[null,null,null,null,null,null,null,"",""]
[null,null,null,null,null,null,null,"",""]
[null,null,null,null,null,null,null,"",""]
[null,null,null,null,null,null,null,"",""]
[null,null,null,null,null,null,null,"",""]
[null,null,null,null,null,null,null,"",""]
[null,null,null,null,null,null,null,"",""]
[null,null,null,null,null,null,null,"",""]
[null,null,null,null,null,null,null,"",""]
[null,null,null,null,null,null,null,"",""]
[null,null,null,null,null,null,null,"",""]
[null,null,null,null,null,null,null,"",""]
[null,null,null,null,null,null,null,"",""]
[null,null,null,null,null,null,null,"",""]
[null,null,null,null,null,null,null,"",""]
[null,null,null,null,null,null,null,"",""]
[null,null,null,null,null,null,null,"",""]
[null,null,null,null,null,null,null,"",""]
[null,null,null,null,null,null,null,"",""]
[null,null,null,null,null,null,null,"",""]
[null,null,null,null,null,null,null,"",""]
[null,null,null,null,null,null,null,"",""]
[null,null,null,null,null,null,null,"",""]
[null,null,null,null,null,null,null,"",""]
[null,null,null,null,null,null,null,"",""]
[null,null,null,null,null,null,null,"",""]
[null,null,null,null,null,null,null,"",""]
[null,null,null,null,null,null,null,"",""]
[null,null,null,null,null,null,null,"",""]
[null,null,null,null,null,null,null,"",""]
[null,null,null,null,null,null,null,"",""]
[null,null,null,null,null,null,null,"",""]
[null,null,null,null,null,null,null,"",""]
[null,null,null,null,null,null,null,"",""]
[null,null,null,null,null,null,null,"",""]
[null,null,null,null,null,null,null,"",""]
[null,null,null,null,null,null,null,"",""]
[null,null,null,null,null,null,null,"",""]
[null,null,null,null,null,null,null,"",""]
[null,null,null,null,null,null,null,"",""]
[null,null,null,null,null,null,null,"",""]
[null,null,null,null,null,null,null,"",""]
[null,null,null,null,null,null,null,"",""]
[null,null,null,null,null,null,null,"",""]
[null,null,null,null,null,null,null,"",""]
[null,null,null,null,null,null,null,"",""]
[null,null,null,null,null,null,null,"",""]
[null,null,null,null,null,null,null,"",""]
[null,null,null,null,null,null,null,"",""]
[null,null,null,null,null,null,null,"",""]
[null,null,null,null,null,null,null,"",""]
[null,null,null,null,null,null,null,"",""]
[null,null,null,null,null,null,null,"",""]
[null,null,null,null,null,null,null,"",""]
[null,null,null,null,null,null,null,"",""]
[null,null,null,null,null,null,null,"",""]
[null,null,null,null,null,null,null,"",""]
[null,null,null,null,null,null,null,"",""]
[null,null,null,null,null,null,null,"",""]
[null,null,null,null,null,null,null,"",""]
[null,null,null,null,null,null,null,"",""]
[null,null,null,null,null,null,null,"",""]
[null,null,null,null,null,null,null,"",""]
[null,null,null,null,null,null,null,"",""]
[null,null,null,null,null,null,null,"",""]
[null,null,null,null,null,null,null,"",""]
[null,null,null,null,null,null,null,"",""]
[null,null,null,null,null,null,null,"",""]
[null,null,null,null,null,null,null,"",""]
[null,null,null,null,null,null,null,"",""]
[null,null,null,null,null,null,null,"",""]
[null,null,null,null,null,null,null,"",""]
[null,null,null,null,null,null,null,"",""]
[null,null,null,null,null,null,null,"",""]
[null,null,null,null,null,null,null,"",""]
[null,null,null,null,null,null,null,"",""]
[null,null,null,null,null,null,null,"",""]
[null,null,null,null,null,null,null,"",""]
[null,null,null,null,null,null,null,"",""]
[null,null,null,null,null,null,null,"",""]
[null,null,null,null,null,null,null,"",""]
[null,null,null,null,null,null,null,"",""]
[null,null,null,null,null,null,null,"",""]
[null,null,null,null,null,null,null,"",""]
[null,null,null,null,null,null,null,"",""]
[null,null,null,null,null,null,null,"",""]
[null,null,null,null,null,null,null,"",""]
[null,null,null,null,null,null,null,"",""]
[null,null,null,null,null,null,null,"",""]
[null,null,null,null,null,null,null,"",""]
[null,null,null,null,null,null,null,"",""]
[null,null,null,null,null,null,null,"",""]
[null,null,null,null,null,null,null,"",""]
[null,null,null,null,null,null,null,"",""]
[null,null,null,null,null,null,null,"",""]
[null,null,null,null,null,null,null,"",""]
[null,null,null,null,null,null,null,"",""]
[null,null,null,null,null,null,null,"",""]
[null,null,null,null,null,null,null,"",""]
[null,null,null,null,null,null,null,"",""]
[null,null,null,null,null,null,null,"",""]
[null,null,null,null,null,null,null,"",""]
[null,null,null,null,null,null,null,"",""]
[null,null,null,null,null,null,null,"",""]
[null,null,null,null,null,null,null,"",""]
[null,null,null,null,null,null,null,null,""]

{"sheet":"調査票","index":3,"n_rows":61,"n_cols":51,"rows_kept":61,"cut":false,"hidden":false,"merged":[[39,45,39,49],[42,45,42,49],[44,34,47,36],[44,37,47,43],[46,44,46,47],[46,48,46,49],[47,44,47,47],[47,48,47,49],[2,36,2,43],[4,28,5,32],[4,33,5,48],[4,49,5,50],[10,49,10,50],[11,39,11,41],[11,46,11,48],[11,49,11,50],[12,34,14,34],[5,19,6,22],[6,5,7,12],[6,34,7,48],[8,44,9,50],[10,28,11,30],[10,31,11,37],[10,38,10,42],[10,43,11,45],[10,46,10,48],[7,28,8,28],[7,29,8,29],[7,30,8,30],[7,31,8,31],[7,32,8,32],[19,8,20,19],[19,20,20,22],[19,23,19,29],[19,30,20,50],[20,3,20,7],[20,23,20,29],[12,42,14,42],[12,43,14,43],[12,44,14,44],[12,45,14,45],[12,48,14,48],[12,50,14,50],[12,35,14,35],[12,36,14,36],[12,37,14,37],[12,38,14,38],[12,39,14,40],[12,41,14,41],[12,28,14,28],[12,29,14,30],[12,31,14,31],[12,32,14,32],[12,33,14,33],[13,5,13,8],[24,20,24,22],[25,3,25,7],[25,20,25,22],[25,44,25,50],[26,20,26,22],[21,3,22,7],[22,12,28,13],[22,20,22,22],[22,30,30,33],[22,37,30,43],[23,18,30,19],[23,20,23,22],[23,34,30,36],[27,3,27,7],[27,44,27,50],[28,20,28,22],[29,20,29,22],[30,20,30,22],[23,44,23,50],[27,20,27,22],[32,6,34,7],[32,8,34,9],[32,10,34,11],[32,12,34,13],[32,37,34,43],[33,44,35,50],[35,6,38,7],[35,8,38,9],[35,10,38,11],[35,12,38,13],[35,14,38,17],[35,18,38,19],[35,20,38,22],[35,23,38,25],[32,14,34,17],[32,18,34,19],[32,20,34,22],[32,23,34,25],[32,26,34,29],[32,30,34,33],[35,26,38,29],[35,30,38,33],[35,37,38,43],[38,45,38,46],[13,9,13,10],[54,5,54,6],[54,13,54,14],[49,4,50,7],[49,25,50,25],[52,5,52,6],[52,13,52,14],[52,25,55,38],[39,18,42,19],[39,3,39,5],[39,6,42,7],[39,8,42,9],[39,10,42,11],[39,12,42,13],[39,14,42,17],[39,37,42,43],[39,20,42,22],[39,23,42,25],[39,26,42,29],[39,30,42,33],[42,3,42,5],[39,34,42,36],[31,20,31,22],[32,3,32,5],[52,49,53,50],[53,5,53,6],[53,13,53,14],[52,40,52,43],[53,40,53,43],[43,44,44,50],[44,4,47,5],[44,6,47,7],[44,8,47,9],[44,10,47,11],[44,12,47,13],[44,14,47,17],[44,18,47,19],[44,20,47,22],[44,23,47,25],[44,26,47,29],[44,30,47,33],[52,44,53,46],[52,47,53,48],[49,44,51,50]]}
[]
[]
[null,null,null,null,null,null,null,null,null,null,null,null,null,null,null,null,null,null,null,null,null,null,null,null,null,null,null,null,null,null,null,null,null,null,null,null,"統計法に基づく基幹統計調査"]
[]
[null,null,null,null,"１　主要な生産品又は事業の内容は何ですか。",null,null,null,null,null,null,null,null,null,null,null,null,"３　調査期間中に事業活動を行った日数は何日でしたか。",null,null,null,null,null,null,null,null,null,null,null,null,null,null,null,"毎月勤労統計調査調査票",null,null,null,null,null,null,null,null,null,null,null,null,null,null,null,"秘"]
[null,null,null,null,"（主要なものとは、総収入の最も多いものです。）",null,null,null,null,null,null,null,null,null,null,null,null,null,null,{"$f":"IF(ISBLANK(基本情報!M8),\"\",基本情報!M8)","v":""}]
[null,null,null,null,null,{"$f":"IF(ISBLANK(基本情報!D8),\"\",基本情報!D8)","v":""},null,null,null,null,null,null,null,null,null,null,null,null,null,null,null,null,null,"日"]
[null,null,null,null,null,null,null,null,null,null,null,null,null,null,null,null,null,null,null,null,null,null,null,null,null,null,null,null,{"$f":"IF(詳細情報!D2=\"\",\"\",詳細情報!D2)","v":"令和"},{"$f":"IF(基本情報!L5>0,基本情報!L5,\"\")","v":""},"年",{"$f":"IF(基本情報!M5>0,基本情報!M5,\"\")","v":""},"月分"]
[null,null,null,null,null,null,null,null,null,null,null,null,null,null,null,null,null,"４　企業の全常用労働者数は何人ですか。該当の番号を○",null,null,null,null,null,null,null,null,null,null,null,null,null,null,null,null,null,null,null,null,null,null,null,null,null,null,"厚 生 労 働 省"]
[null,null,null,null,"２　調査期間はいつからいつまででしたか。（前月の",null,null,null,null,null,null,null,null,null,null,null,"　で囲んでください。（貴企業（同一会社）に属する事業","　で囲んでください。（貴企業（同一会社）に属する事業"]
[null,null,null,null,"　最終給与締切日の翌日から、本月の最終給与締切日",null,null,null,null,null,null,null,null,null,null,null,null,"　所のすべてに雇用される常用労働者数です。",null,null,null,null,null,null,null,null,null,null,"都道府県\n番　　号",null,null,"事　業　所　一　連　番　号",null,null,null,null,null,null,"産業分類番号",null,null,null,null,"抽出率番号",null,null,"※事業所",null,null,"※ 企業"]
[null,null,null,null,"　までの1ヵ月間です。）",null,null,null,null,null,null,null,null,null,null,null,null,null,{"$f":"IF(基本情報!M13=\"(1)1,000人以上\",\"①\",\"1\")","v":"1"}," 1,000人以上",null,{"$f":"IF(基本情報!M13=\"(4) 30～ 99人\",\"④\",\"4\")","v":"4"}," 30～99人",null,null,null,null,null,null,null,null,null,null,null,null,null,null,null,"大","中",null,null,"小",null,null,null,"規模番号",null,null,"規模番号"]
[null,null,null,null,null,null,null,null,null,null,null,null,null,null,null,null,null,null,{"$f":"IF(基本情報!M13=\"(2)300～999人\",\"②\",\"2\")","v":"2"}," 300～999人",null,{"$f":"IF(基本情報!M13=\"(5)　5～　29人\",\"⑤\",\"5\")","v":"5"}," 5～29人",null,null,null,null,null,{"$f":"IF(ISBLANK(基本情報!L3),\"\",基本情報!L3)","v":""},{"$f":"IF(ISBLANK(基本情報!M3),\"\",基本情報!M3)","v":""},null,{"$f":"IF(ISBLANK(基本情報!N3),\"\",基本情報!N3)","v":""},{"$f":"IF(ISBLANK(基本情報!O3),\"\",基本情報!O3)","v":""},{"$f":"IF(ISBLANK(基本情報!P3),\"\",基本情報!P3)","v":""},{"$f":"IF(ISBLANK(基本情報!Q3),\"\",基本情報!Q3)","v":""},{"$f":"IF(ISBLANK(基本情報!R3),\"\",基本情報!R3)","v":""},{"$f":"IF(ISBLANK(基本情報!S3),\"\",基本情報!S3)","v":""},{"$f":"IF(ISBLANK(基本情報!T3),\"\",基本情報!T3)","v":""},{"$f":"IF(ISBLANK(基本情報!U3),\"\",基本情報!U3)","v":""},{"$f":"IF(ISBLANK(基本情報!V3),\"\",基本情報!V3)","v":""},null,{"$f":"IF(ISBLANK(基本情報!W3),\"\",基本情報!W3)","v":""},{"$f":"IF(ISBLANK(基本情報!X3),\"\",基本情報!X3)","v":""},{"$f":"IF(ISBLANK(基本情報!Y3),\"\",基本情報!Y3)","v":""},{"$f":"IF(ISBLANK(基本情報!Z3),\"\",基本情報!Z3)","v":""},{"$f":"IF(ISBLANK(基本情報!AA3),\"\",基本情報!AA3)","v":""}]
[null,null,null,null,null,{"$f":"IF(ISBLANK(基本情報!D13),\"\",基本情報!D13)","v":""},null,null,null,{"$f":"IF(ISBLANK(基本情報!F13),\"\",基本情報!F13)","v":""},null,{"$f":"IF(ISBLANK(基本情報!H13),\"\",基本情報!H13)","v":""},{"$f":"IF(ISBLANK(基本情報!J13),\"\",基本情報!J13)","v":""},null,null,null,null,null,{"$f":"IF(基本情報!M13=\"(3)100～299人\",\"③\",\"3\")","v":"3"}," 100～299人"]
[]
[null,null,null," 　常用労働者についてお答えください。　常用労働者とは、期間を定めずに、又は1か月以上の期間を定めて雇われている者",null,null,null,null,null,null,null,null,null,null,null,null,null,null,null,null,null,null,null,null,null,null,null,null,null,null,null,null,null,null,null,null,null,null,null,null,null,null,"　※　印欄は記入しないでください。"]
[null,null,null," をいいます。事業主又は法人の代表者、無給の家族従業者は除きます。"]
[null,null,null," 　パートタイム労働者とは、常用労働者のうち、1日の所定労働時間が一般の労働者よりも短い者及び1日の所定労働時間が一般の労働者と同じで1週の所定労働日数が一般の労働者よりも少ない者です。"]
[]
[null,null,null,null,null,null,null,null,"5　常　用　労　働　者　数",null,null,null,null,null,null,null,null,null,null,null,"6　出勤日数",null,null,"7　実　労　働　時　間　数",null,null,null,null,null,null,"8　現　金　給　与　額　（税込み額です。）"]
[null,null,null,null,null,null,null,null,null,null,null,null,null,null,null,null,null,null,null,null,null,null,null,"(休憩時間は含めないでください。)"]
[null,null,null,"常用労働者"]
[null,null,null,null,null,null,null,null," (1)　前調査",null," (2)　採用、",null," (3)　解雇、\n 退職、転勤\n 等による減\n 少は何人で\n したか。",null," (4)　本調査",null,null,null,null,null," 実際に出勤した",null,null," (1)　所定内労働",null,null," (2) 所定外労働",null,null,null," (1)　きまって支\n 給する給与の総\n 額はいくらでし\n たか。（労働協\n 約、就業規則等\n に支給条件、算\n 定方法等が定め\n られている給与\n です。）",null,null,null,null,null,null,"  (3)　特別に支払われた給\n  与の総額はいくらでした \n  か。(盆、暮等の賞与、\n  3ヵ月を超える期間で算\n  定される給与、ベースアッ\n  プの差額追給分及び支給\n  事由の発生が不確実な給\n  与です。）"]
[null,null,null,null,null,null,null,null," ",null," ",null,null,null,null,null,null,null," (5)　うち、 \n パートタイ\n ム労働者は\n 何人でした\n か。",null," 日の合計は延べ",null,null,null,null,null,null,null,null,null,null,null,null,null,"(2)　うち、超過\n労働給与の総額\nはいくらでした\nか。(残業手当、\n深夜手当等です.)",null,null,null,null,null,null,null,null,null," (4)　左の特別に支払われ"]
[null,null,null,null,null,null,null,null," 期間の末日",null," 転勤等によ",null,null,null," 期間の末日",null,null,null,null,null," 何日でしたか。",null,null," 時間の合計は延",null,null," 時間の合計は延"]
[null,null,null,null,null,null,null,null,null,null,null,null,null,null,null,null,null,null,null,null," (有給休暇は含",null,null,null,null,null,null,null,null,null,null,null,null,null,null,null,null,null,null,null,null,null,null,null," た給与の名称及び名称別"]
[null,null,null,null,null,null,null,null," は何人でし",null," る増加は何",null,null,null," は何人でし",null,null,null,null,null," めないでくださ",null,null," べ何時間でした",null,null," べ何時間でした"]
[null,null,null,"の  性  別",null,null,null,null,null,null,null,null,null,null,null,null,null,null,null,null," い。1時間でも",null,null,null,null,null,null,null,null,null,null,null,null,null,null,null,null,null,null,null,null,null,null,null," 金額を記入してください。"]
[null,null,null,null,null,null,null,null," たか。",null," 人でしたか。",null,null,null," たか。",null,null,null,null,null," 出勤した日は1",null,null," か。",null,null," か。"]
[null,null,null,null,null,null,null,null,null,null,null,null,null,null,null,null,null,null,null,null," 日に数えてくだ"]
[null,null,null,null,null,null,null,null,null,null,null,null,null,null,null,null,null,null,null,null," さい。）"]
[]
[null,null,null,null,null,null,1,null,{"$f":"基本情報!F19","v":0},null,{"$f":"基本情報!H19","v":0},null,{"$f":"基本情報!J19","v":0},null,{"$f":"基本情報!L19","v":0},null,null,null,{"$f":"基本情報!N19","v":0},null,{"$f":"基本情報!P19","v":0},null,null,{"$f":"基本情報!R19","v":0},null,null,{"$f":"基本情報!T19","v":0},null,null,null,{"$f":"基本情報!V19","v":0},null,null,null,null,null,null,{"$f":"基本情報!Z19","v":0},null,null,null,null,null,null," ①賞与"]
[null,null,null,null,"男",null,null,null,null,null,null,null,null,null,null,null,null,null,null,null,null,null,null,null,null,null,null,null,null,null,null,null,null,null,null,null,null,null,null,null,null,null,null,null,{"$f":"基本情報!X31","v":0}]
[null,null,null,null,null,null,null,null,null,null,null,null,null,null,null,null,null,null,null,null,null,null,null,null,null,null,null,null,null,null,null,null,null,null," 計欄に記入して"]
[null,null,null,null,null,null,2,null,{"$f":"基本情報!F20","v":0},null,{"$f":"基本情報!H20","v":0},null,{"$f":"基本情報!J20","v":0},null,{"$f":"基本情報!L20","v":0},null,null,null,{"$f":"基本情報!N20","v":0},null,{"$f":"基本情報!P20","v":0},null,null,{"$f":"基本情報!R20","v":0},null,null,{"$f":"基本情報!T20","v":0},null,null,null,{"$f":"基本情報!V20","v":0},null,null,null," ください。",null,null,{"$f":"基本情報!Z20","v":0}]
[null,null,null,null,null,null,null,null,null,null,null,null,null,null,null,null,null,null,null,null,null,null,null,null,null,null,null,null,null,null,null,null,null,null,null,null,null,null,null,null,null,null,null,null," ②定昇・ベースアップ等"]
[null,null,null,null,"女",null,null,null,null,null,null,null,null,null,null,null,null,null,null,null,null,null,null,null,null,null,null,null,null,null,null,null,null,null,null,null,null,null,null,null,null,null,null,null,"　の追給",null,null,null,{"$f":"IF(基本情報!X35>0,基本情報!X35,\"\")","v":""}]
[null,null,null,null,null,null,null,null,null,null,null,null,null,null,null,null,null,null,null,null,null,null,null,null,null,null,null,null,null,null,null,null,null,null,null,null,null,null,null,null,null,null,null,null,"  (",{"$f":"IF(基本情報!Z35>0,基本情報!Z35,\"\")","v":""},null,")月分"]
[null,null,null,null,null,null,3,null,{"$f":"基本情報!F21","v":0},null,{"$f":"基本情報!H21","v":0},null,{"$f":"基本情報!J21","v":0},null,{"$f":"基本情報!L21","v":0},null,null,null,null,null,{"$f":"基本情報!P21","v":0},null,null,{"$f":"基本情報!R21","v":0},null,null,{"$f":"基本情報!T21","v":0},null,null,null,{"$f":"基本情報!V21","v":0},null,null,null,{"$f":"基本情報!X21","v":0},null,null,{"$f":"基本情報!Z21","v":0},null,null,null,null,null,null,null,{"$f":"IF(基本情報!X37>0,基本情報!X37,\"\")","v":""},null,null,null,null,"千円"]
[null,null,null,null,null,null,null,null,null,null,null,null,null,null,null,null,null,null,null,null,null,null,null,null,null,null,null,null,null,null,null,null,null,null,null,null,null,null,null,null,null,null,null,null," ③3ヵ月を超える期間で"]
[null,null,null,null,"計",null,null,null,null,null,null,null,null,null,null,null,null,null,null,null,null,null,null,null,null,null,null,null,null,null,null,null,null,null,null,null,null,null,null,null,null,null,null,null,"　算定される通勤手当"]
[null,null,null,null,null,null,null,null,null,null,null,null,null,null,null,null,null,null,null,null,null,null,null,null,null,null,null,null,null,null,null,null,null,null,null,null,null,null,null,null,null,null,null,null,null,{"$f":"IF(基本情報!X40>0,基本情報!X40,\"\")","v":""},null,null,null,null,"千円"]
[null,null,null,null,null,null,null,null,"　　　◎　計のうち、パートタイム労働者分について記入してください。",null,null,null,null,null,null,null,null,null,null,null,null,null,null,null,null,null,null,null,null,null,null,null,null,null,null,null,null,null,null,null,null,null,null,null," その他（名称別に金額を"]
[null,null,null,null,"うち、パートタイム労働者",null,4,null,{"$f":"基本情報!F22","v":0},null,{"$f":"基本情報!H22","v":0},null,{"$f":"基本情報!J22","v":0},null,null,null,null,null,{"$f":"基本情報!N22","v":0},null,{"$f":"基本情報!P22","v":0},null,null,{"$f":"基本情報!R22","v":0},null,null,{"$f":"基本情報!T22","v":0},null,null,null,{"$f":"基本情報!V22","v":0},null,null,null,{"$f":"基本情報!X22","v":0},null,null,{"$f":"基本情報!Z22","v":0}]
[null,null,null,null,null,null,null,null,null,null,null,null,null,null,null,null,null,null,null,null,null,null,null,null,null,null,null,null,null,null,null,null,null,null,null,null,null,null,null,null,null,null,null,null," 記入してください。）"]
[null,null,null,null,null,null,null,null,null,null,null,null,null,null,null,null,null,null,null,null,null,null,null,null,null,null,null,null,null,null,null,null,null,null,null,null,null,null,null,null,null,null,null,null,{"$f":"IF(ISBLANK(基本情報!X42),\"\",基本情報!X42)","v":""},null,null,null,{"$f":"IF(基本情報!X44>0,基本情報!X44,\"\")","v":""},null,"千円"]
[null,null,null,null,null,null,null,null,null,null,null,null,null,null,null,null,null,null,null,null,null,null,null,null,null,null,null,null,null,null,null,null,null,null,null,null,null,null,null,null,null,null,null,null,{"$f":"IF(ISBLANK(基本情報!X46),\"\",基本情報!X46)","v":""},null,null,null,{"$f":"IF(基本情報!X48>0,基本情報!X48,\"\")","v":""},null,"千円"]
[]
[null,null,null,null,"9 変動状況",null,null,null,"　　　調査期間中に、次のことがあった場合は該当事項の数字を○で囲い、右の備考欄に",null,null,null,null,null,null,null,null,null,null,null,null,null,null,null,null,"10　備　考","　　　本月分の報告内容と前月分の間に著しい差がある場合は、",null,null,null,null,null,null,null,null,null,null,null,null,null,"　記入担当者",null,null,null,{"$f":"IF(ISBLANK(基本情報!Q5),\"\",基本情報!Q5)","v":""}]
[null,null,null,null,null,null,null,null,"　　　その概略を記入してください。",null,null,null,null,null,null,null,null,null,null,null,null,null,null,null,null,null,"　　　その理由を記入してください。",null,null,null,null,null,null,null,null,null,null,null,null,null,null,"氏　　　　名"]
[]
[null,null,null,null,null,{"$f":"IF(基本情報!C29=\"○\",\"①\",\"1\")","v":"1"},null," 定昇を実施した。",null,null,null,null,null,{"$f":"IF(基本情報!C35=\"○\",\"④\",\"4\")","v":"4"},null," 休日に操業、営業等の事業活動を行った。",null,null,null,null,null,null,null,null,null,{"$f":"IF(ISBLANK(基本情報!N29),\"\",基本情報!N29)","v":""},null,null,null,null,null,null,null,null,null,null,null,null,null,null,"調　査　票",null,null,null,{"$f":"IF(ISBLANK(基本情報!Y5),\"\",基本情報!Y5)","v":""},null,null,{"$f":"IF(ISBLANK(基本情報!Z5),\"\",基本情報!Z5)","v":""},null,{"$f":"IF(ISBLANK(基本情報!AA5),\"\",基本情報!AA5)","v":""}]
[null,null,null,null,null,{"$f":"IF(基本情報!C31=\"○\",\"②\",\"2\")","v":"2"},null," ベースアップを実施した。",null,null,null,null,null,{"$f":"IF(基本情報!C37=\"○\",\"⑤\",\"5\")","v":"5"},null," 制度上の週所定労働時間の短縮を実施した。",null,null,null,null,null,null,null,null,null,null,null,null,null,null,null,null,null,null,null,null,null,null,null,null,"提出年月日"]
[null,null,null,null,null,{"$f":"IF(基本情報!C33=\"○\",\"③\",\"3\")","v":"3"},null," 操業短縮、一時休業を実施した。",null,null,null,null,null,{"$f":"IF(基本情報!C39=\"○\",\"⑥\",\"6\")","v":"6"},null," 夏休みなど、週休以外の休日を増やした。"]
[]
[]
[null,null,null,null,"　この調査票は、10日までに提出してください。"]
[null,null,null,null,"　この調査票は、統計法に基づく基幹統計を作成するために行う調査です。"]
[null,null,null,null,"　この調査の対象となった事業所の方々には統計法に基づく報告の義務があり、報告の拒否や虚偽報告については罰則があります。"]
[null,null,null,null,"　この調査の実施に当たっては、特に必要がある場合には、資料の提出のお願いや関係者の方々への質問を行うことがあります。"]

{"sheet":"出力CSVデータレイアウト定義","index":4,"n_rows":2,"n_cols":54,"rows_kept":2,"cut":false,"hidden":true,"merged":[]}
["都道府県番号","事業所一連番号","1_主要な生産品又は事業","2_調査期間_開始月","2_調査期間_開始日","2_調査期間_終了月","2_調査期間_終了日","3_事業活動日数","4_企業の全常用労働者数","5_常用労働者数_(1)前月末労働者数_男","5_常用労働者数_(2)増加数_男","5_常用労働者数_(3)減少数_男","5_常用労働者数_(5)うちパート_男","6_出勤日数_男","7_実労働時間数_(1)所定内労働時間_男","7_実労働時間数_(2)所定外労働時間_男","8_現金給与額_(1)きまって支給する給与_男","8_現金給与額_(3)特別に支払われた給与_男","5_常用労働者数_(1)前月末労働者数_女","5_常用労働者数_(2)増加数_女","5_常用労働者数_(3)減少数_女","5_常用労働者数_(5)うちパート_女","6_出勤日数_女","7_実労働時間数_(1)所定内労働時間_女","7_実労働時間数_(2)所定外労働時間_女","8_現金給与額_(1)きまって支給する給与_女","8_現金給与額_(3)特別に支払われた給与_女","8_現金給与額_(2)超過労働の給与_計","5_常用労働者数_(1)前月末労働者数_パート","5_常用労働者数_(2)増加数_パート","5_常用労働者数_(3)減少数_パート","6_出勤日数_パート","7_実労働時間数_(2)所定外労働時間_パート","7_実労働時間数_(2)所定外労働時間_パート","8_現金給与額_(1)きまって支給する給与_パート","8_現金給与額_(2)超過労働の給与_パート","8_現金給与額_(3)特別に支払われた給与_パート","8_現金給与額_(4)①賞与","8_現金給与額_(4)②定昇_追給開始月","8_現金給与額_(4)②定昇_追給終了月","8_現金給与額_(4)②定昇_追給金額","8_現金給与額_(4)③通勤手当","8_現金給与額_(4)④名称","8_現金給与額_(4)④金額","8_現金給与額_(4)⑤名称","8_現金給与額_(4)⑤金額","9_変動状況_1_定昇実施","9_変動状況_2_ベースアップ","9_変動状況_3_操業短縮","9_変動状況_4_休日操業","9_変動状況_5_所定労働時間短縮","9_変動状況_6_休日増加","10_備考","記入担当者氏名"]
[{"$f":"IF(調査票!AC13=\"\",\" \",調査票!AC13)&IF(調査票!AD13=\"\",\" \",調査票!AD13)","v":"  "},{"$f":"IF(調査票!AF13=\"\",\" \",調査票!AF13)&IF(調査票!AG13=\"\",\" \",調査票!AG13)&IF(調査票!AH13=\"\",\" \",調査票!AH13)&IF(調査票!AI13=\"\",\" \",調査票!AI13)&IF(調査票!AJ13=\"\",\" \",調査票!AJ13)&IF(調査票!AK13=\"\",\" \",調査票!AK13)&IF(調査票!AL13=\"\",\" \",調査票!AL13)","v":"       "},null,{"$f":"IF(調査票!F14=\"\",\"\",RIGHT(0 & 調査票!F14, 2))","v":""},{"$f":"IF(調査票!J14=\"\",\"\",RIGHT(0 & 調査票!J14, 2))","v":""},{"$f":"IF(調査票!L14=\"\",\"\",RIGHT(0 & 調査票!L14, 2))","v":""},{"$f":"IF(調査票!M14=\"\",\"\",RIGHT(0 & 調査票!M14, 2))","v":""},{"$f":"IF(調査票!T6=\"\",\"\",RIGHT(0 & 調査票!T6, 2))","v":""},{"$f":"IF(調査票!S12=\"①\",1,IF(調査票!S13=\"②\",2,IF(調査票!S14=\"③\",3,IF(調査票!V12=\"④\",4,IF(調査票!V13=\"⑤\",5,\"\")))))","v":""},{"$f":"IF(調査票!I33=\"\",\"\",調査票!I33)","v":0},{"$f":"IF(調査票!K33=\"\",\"\",調査票!K33)","v":0},{"$f":"IF(調査票!M33=\"\",\"\",調査票!M33)","v":0},{"$f":"IF(調査票!S33=\"\",\"\",調査票!S33)","v":0},{"$f":"IF(調査票!U33=\"\",\"\",調査票!U33)","v":0},{"$f":"IF(調査票!X33=\"\",\"\",調査票!X33)","v":0},{"$f":"IF(調査票!AA33=\"\",\"\",調査票!AA33)","v":0},{"$f":"IF(調査票!AE33=\"\",\"\",調査票!AE33)","v":0},{"$f":"IF(調査票!AL33=\"\",\"\",調査票!AL33)","v":0},{"$f":"IF(調査票!I36=\"\",\"\",調査票!I36)","v":0},{"$f":"IF(調査票!K36=\"\",\"\",調査票!K36)","v":0},{"$f":"IF(調査票!M36=\"\",\"\",調査票!M36)","v":0},{"$f":"IF(調査票!S36=\"\",\"\",調査票!S36)","v":0},{"$f":"IF(調査票!U36=\"\",\"\",調査票!U36)","v":0},{"$f":"IF(調査票!X36=\"\",\"\",調査票!X36)","v":0},{"$f":"IF(調査票!AA36=\"\",\"\",調査票!AA36)","v":0},{"$f":"IF(調査票!AE36=\"\",\"\",調査票!AE36)","v":0},{"$f":"IF(調査票!AL36=\"\",\"\",調査票!AL36)","v":0},{"$f":"IF(調査票!AI40=\"\",\"\",調査票!AI40)","v":0},{"$f":"IF(調査票!I45=\"\",\"\",調査票!I45)","v":0},{"$f":"IF(調査票!K45=\"\",\"\",調査票!K45)","v":0},{"$f":"IF(調査票!M45=\"\",\"\",調査票!M45)","v":0},{"$f":"IF(調査票!U45=\"\",\"\",調査票!U45)","v":0},{"$f":"IF(調査票!X45=\"\",\"\",調査票!X45)","v":0},{"$f":"IF(調査票!AA45=\"\",\"\",調査票!AA45)","v":0},{"$f":"IF(調査票!AE45=\"\",\"\",調査票!AE45)","v":0},{"$f":"IF(調査票!AI45=\"\",\"\",調査票!AI45)","v":0},{"$f":"IF(調査票!AL45=\"\",\"\",調査票!AL45)","v":0},{"$f":"IF(調査票!AS34=\"\",\"\",調査票!AS34)","v":0},{"$f":"IF(調査票!AW38=\"\",\"\",調査票!AW38)","v":""},{"$f":"IF(調査票!AT39=\"\",\"\",調査票!AT39)","v":""},{"$f":"IF(調査票!AT40=\"\",\"\",調査票!AT40)","v":""},{"$f":"IF(調査票!AT43=\"\",\"\",調査票!AT43)","v":""},null,{"$f":"IF(調査票!AW47=\"\",\"\",調査票!AW47)","v":""},null,{"$f":"IF(調査票!AW48=\"\",\"\",調査票!AW48)","v":""},{"$f":"IF(調査票!F53=\"①\",1,IF(調査票!F53=\"1\",0,0))","v":0},{"$f":"IF(調査票!F54=\"②\",1,IF(調査票!F54=\"2\",0,0))","v":0},{"$f":"IF(調査票!F55=\"③\",1,IF(調査票!F55=\"3\",0,0))","v":0},{"$f":"IF(調査票!N53=\"④\",1,IF(調査票!N53=\"4\",0,0))","v":0},{"$f":"IF(調査票!N54=\"⑤\",1,IF(調査票!N54=\"5\",0,0))","v":0},{"$f":"IF(調査票!N55=\"⑥\",1,IF(調査票!N55=\"6\",0,0))","v":0}]

{"sheet":"リスト_基本情報","index":5,"n_rows":18,"n_cols":10,"rows_kept":18,"cut":false,"hidden":true,"merged":[]}
["産業分類_大分類","4_企業の全常用労働者数","9_変動状況_1_定昇実施","9_変動状況_2_ベースアップ","9_変動状況_3_操業短縮","9_変動状況_4_休日操業","9_変動状況_5_所定労働時間短縮","9_変動状況_6_休日増加","元号（暫定）","事業所名登録（ユーザー定義）"]
[null,null,null,null,null,null,null,null,"平成","※ここに事業所名を入力してください。"]
["C","(1)1,000人以上","○","○","○","○","○","○","令和"]
["D","(2)300～999人"]
["E","(3)100～299人"]
["F","(4) 30～ 99人"]
["G","(5)　5～　29人"]
["H"]
["I"]
["J"]
["K"]
["L"]
["M"]
["N"]
["O"]
["P"]
["Q"]
["R"]

{"sheet":"リスト_詳細情報","index":6,"n_rows":3,"n_cols":4,"rows_kept":3,"cut":false,"hidden":true,"merged":[]}
["詳細_常用労働者_性別","詳細_常用労働者_パート","詳細_調査期間内の増加","詳細_調査期間内の減少"]
["男"]
["女","パート","有","有"]